[Event "XVI Memorial Lezcano Montalvo 2024"]
[Site "Gran Canaria"]
[Date "2024.03.29"]
[Round "7.29"]
[White "Estremera Panos, Sergio"]
[Black "Ascension Suarez, Joel"]
[Result "1-0"]
[ECO "E12"]
[WhiteElo "2233"]
[BlackElo "1731"]
[Annotator "RC"]
[PlyCount "29"]
[EventDate "2024.03.23"]
[EventType "swiss"]
[EventCountry "ESP"]
[SourceTitle "playchess.com"]
[Source "ChessBase"]
[SourceQuality "1"]
[TimeControl "5400+30"]

1. d4 {[%emt 0:00:02]} Nf6 {[%emt 0:00:12]} 2. Nf3 {[%emt 0:00:16]} e6 {[%emt 0:00:05]} 3. c4 {[%emt 0:00:14]} d5 {[%emt 0:00:11]} 4. Nc3 {[%emt 0:00:14]} Be7 {[%emt 0:00:21]} 5. Bg5 {[%emt 0:00:21]} b6 {[%emt 0:01:44]} 6. e3 {[%emt 0:01:06]} Bb7 {[%emt 0:01:14]} 7. Bxf6 {[%emt 0:06:30]} Bxf6 {[%emt 0:00:08]} 8. cxd5 {[%emt 0:00:04]} Bxd5 {[%emt 0:00:14]} 9. Nxd5 {[%emt 0:01:14]} Qxd5 {[%emt 0:00:18]} 10. Qa4+ {[%emt 0:00:34]} Qd7 {[%emt 0:11:39]} 11. Qc2 {[%emt 0:05:51]} Qd6 {[%emt 0:13:28]} 12. Bd3 {[%emt 0:01:53]} Nd7 {[%emt 0:28:16]} 13. O-O {[%emt 0:04:21]} Bd8 {[%emt 0:07:45]} 14. Bb5 {[%emt 0:15:56]} O-O {[%emt 0:00:37]} 15. Qc6 {[%emt 0:02:03]} 1-0

[Event "XVI Memorial Lezcano Montalvo 2024"]
[Site "Gran Canaria"]
[Date "2024.03.29"]
[Round "7.30"]
[White "Grube, Kurt"]
[Black "Lopez Pereyra, Antonio"]
[Result "0-1"]
[ECO "A85"]
[WhiteElo "1773"]
[BlackElo "2069"]
[Annotator "RC"]
[PlyCount "98"]
[EventDate "2024.03.23"]
[EventType "swiss"]
[EventCountry "ESP"]
[SourceTitle "playchess.com"]
[Source "ChessBase"]
[SourceQuality "1"]
[TimeControl "5400+30"]

1. c4 {[%emt 0:00:02]} d6 {[%emt 0:00:56]} 2. d4 {[%emt 0:00:12]} f5 {[%emt 0:00:14]} 3. Nc3 {[%emt 0:00:31]} Nf6 {[%emt 0:00:08]} 4. Nf3 {[%emt 0:00:24]} e6 {[%emt 0:01:10]} 5. Qc2 {[%emt 0:03:08]} d5 {[%emt 0:06:36]} 6. e3 {[%emt 0:02:33]} c6 {[%emt 0:02:02]} 7. Be2 {[%emt 0:02:03]} Bd6 {[%emt 0:00:34]} 8. Ne5 {[%emt 0:04:09]} O-O {[%emt 0:02:50]} 9. c5 {[%emt 0:10:05]} Bc7 {[%emt 0:07:53]} 10. b4 {[%emt 0:08:28]} Ne4 {[%emt 0:11:04]} 11. O-O {[%emt 0:05:55]} Nd7 {[%emt 0:07:00]} 12. f4 {[%emt 0:04:03]} Nxe5 {[%emt 0:10:00]} 13. dxe5 {[%emt 0:00:51]} b6 {[%emt 0:00:58]} 14. Nxe4 {[%emt 0:02:27]} fxe4 {[%emt 0:00:03]} 15. cxb6 {[%emt 0:00:41]} Bxb6 {[%emt 0:01:35]} 16. Qxc6 {[%emt 0:12:45]} Bd7 {[%emt 0:00:37]} 17. Qd6 {[%emt 0:06:30]} Rc8 {[%emt 0:00:41]} 18. b5 {[%emt 0:01:06]} Rc2 {[%emt 0:24:09]} 19. Bg4 {[%emt 0:05:42]} Qc8 {[%emt 0:03:14]} 20. Kh1 {[%emt 0:03:24]} Re8 {[%emt 0:10:40]} 21. a4 {[%emt 0:07:38]} Bc5 {[%emt 0:05:48]} 22. Qa6 {[%emt 0:00:29]} d4 {[%emt 0:00:29]} 23. exd4 {[%emt 0:00:44]} Qxa6 {[%emt 0:00:40]} 24. bxa6 {[%emt 0:00:03]} Bxd4 {[%emt 0:00:15]} 25. Rb1 {[%emt 0:01:37]} Rec8 {[%emt 0:01:52]} 26. h3 {[%emt 0:03:21]} h5 {[%emt 0:00:50]} 27. Bxh5 {[%emt 0:01:37]} e3 {[%emt 0:00:41]} 28. Rd1 {[%emt 0:02:03]} e2 {[%emt 0:00:50]} 29. Bxe2 {[%emt 0:00:22]} Rxe2 {[%emt 0:00:14]} 30. Rxd4 {[%emt 0:00:14]} Bc6 {[%emt 0:00:25]} 31. Rd2 {[%emt 0:06:54]} Re1+ {[%emt 0:00:34]} 32. Kh2 {[%emt 0:00:18]} Be4 {[%emt 0:00:00]} 33. Rb4 {[%emt 0:02:37]} Rcxc1 {[%emt 0:00:00]} 34. Rdd4 {[%emt 0:01:58]} Bc6 {[%emt 0:01:23]} 35. Rd2 {[%emt 0:01:49]} Kh7 {[%emt 0:00:32]} 36. Rbd4 {[%emt 0:00:11]} Kg6 {[%emt 0:00:18]} 37. g4 {[%emt 0:01:28]} Re3 {[%emt 0:00:39]} 38. Rd1 {[%emt 0:00:13]} Rcc3 {[%emt 0:00:26]} 39. f5+ {[%emt 0:00:20]} Kg5 {[%emt 0:00:25]} 40. fxe6 {[%emt 0:00:30]} Rxh3+ {[%emt 0:00:13]} 41. Kg1 {[%emt 0:01:35]} Rcg3+ {[%emt 0:00:49]} 42. Kf1 {[%emt 0:00:00]} Rf3+ {[%emt 0:00:51]} 43. Kg1 {[%emt 0:00:00]} Rfg3+ {[%emt 0:00:32]} 44. Kf1 {[%emt 0:00:00]} Rg2 {[%emt 0:00:05]} 45. Rd5 {[%emt 0:00:25]} Bxd5 {[%emt 0:00:09]} 46. Rxd5 {[%emt 0:00:03]} Rb2 {[%emt 0:00:45]} 47. Kg1 {[%emt 0:00:27]} Rc3 {[%emt 0:00:26]} 48. Rd1 {[%emt 0:00:06]} Re3 {[%emt 0:00:19]} 49. e7 {[%emt 0:01:34]} Rxe5 {[%emt 0:01:00]} 0-1

[Event "XVI Memorial Lezcano Montalvo 2024"]
[Site "Gran Canaria"]
[Date "2024.03.29"]
[Round "7.31"]
[White "Quevedo Olivares, Carlos Tomas"]
[Black "Sarmiento Afonso, Santiago"]
[Result "0-1"]
[ECO "B22"]
[WhiteElo "1763"]
[BlackElo "2023"]
[Annotator "NA RC"]
[PlyCount "62"]
[EventDate "2024.03.23"]
[EventType "swiss"]
[EventCountry "ESP"]
[SourceTitle "playchess.com"]
[Source "ChessBase"]
[SourceQuality "1"]
[TimeControl "5400+30"]

1. e4 {[%emt 0:00:04]} c5 {[%emt 0:00:36]} 2. c3 {[%emt 0:00:11]} Nf6 {[%emt 0:00:28]} 3. e5 {[%emt 0:00:06]} Nd5 {[%emt 0:00:06]} 4. d4 {[%emt 0:00:11]} cxd4 {[%emt 0:00:09]} 5. Nf3 {[%emt 0:00:08]} e6 {[%emt 0:00:11]} 6. cxd4 {[%emt 0:01:27]} Qc7 {[%emt 0:02:35]} 7. Bd2 {[%emt 0:04:56]} Nc6 {[%emt 0:04:14]} 8. Nc3 {[%emt 0:01:57]} Nxc3 {[%emt 0:01:21]} 9. Bxc3 {[%emt 0:00:18]} d6 {[%emt 0:03:11]} 10. Rc1 {[%emt 0:01:18]} Bd7 {[%emt 0:01:47]} 11. Bd3 {[%emt 0:04:31]} dxe5 {[%emt 0:02:55]} 12. dxe5 {[%emt 0:01:44]} Nb4 {[%emt 0:02:27]} 13. Bxb4 {[%emt 0:11:48]} Bxb4+ {[%emt 0:00:11]} 14. Kf1 {[%emt 0:00:09]} Qb6 {[%emt 0:01:04]} 15. Qe2 {[%emt 0:00:56]} Bc6 {[%emt 0:01:43]} 16. Kg1 {[%emt 0:04:59]} Rd8 {[%emt 0:05:26]} 17. h3 {[%emt 0:03:00]} Bc5 {[%emt 0:03:56]} 18. Kh2 {[%emt 0:00:22]} Bxf2 {[%emt 0:00:00]} 19. Rhf1 {[%emt 0:00:26]} Be3 {[%emt 0:00:16]} 20. Rc3 {[%emt 0:01:29]} Bf4+ {[%emt 0:03:19]} 21. Kh1 {[%emt 0:02:02]} O-O {[%emt 0:03:03]} 22. Nh4 {[%emt 0:11:15]} Bh6 {[%emt 0:10:13]} 23. Bb1 {[%emt 0:10:51]} Rd2 {[%emt 0:13:32]} 24. Qh5 {[%emt 0:03:31]} Rf2 {[%emt 0:02:30]} 25. Re1 {[%emt 0:05:30]} Rxb2 {[%emt 0:05:35]} 26. Bd3 {[%emt 0:03:15]} Qf2 {[%emt 0:00:36]} 27. Rg1 {[%emt 0:03:20]} Rxa2 {[%emt 0:07:09]} 28. Bb1 {[%emt 0:02:33]} Re2 {[%emt 0:05:25]} 29. Bd3 {[%emt 0:01:36]} Re3 {[%emt 0:00:43]} 30. Rxc6 {[%emt 0:04:10]} bxc6 {[%emt 0:00:16]} 31. Rf1 {[%emt 0:00:15]} Re1 {[%emt 0:00:18]} 0-1

[Event "XVI Memorial Lezcano Montalvo 2024"]
[Site "Gran Canaria"]
[Date "2024.03.29"]
[Round "7.32"]
[White "Lorenzo Ventura, Abel"]
[Black "Perez Garcia, Jimena"]
[Result "0-1"]
[ECO "B13"]
[WhiteElo "1772"]
[BlackElo "1992"]
[Annotator "NA RC"]
[PlyCount "38"]
[EventDate "2024.03.23"]
[EventType "swiss"]
[EventCountry "ESP"]
[SourceTitle "playchess.com"]
[Source "ChessBase"]
[SourceQuality "1"]
[TimeControl "5400+30"]

1. d4 {[%emt 0:00:24]} d5 {[%emt 0:00:35]} 2. Bf4 {[%emt 0:00:10]} c5 {[%emt 0:00:24]} 3. e3 {[%emt 0:00:07]} cxd4 {[%emt 0:00:36]} 4. exd4 {[%emt 0:00:02]} Nc6 {[%emt 0:00:49]} 5. c3 {[%emt 0:00:18]} f6 {[%emt 0:01:57]} 6. Bd3 {[%emt 0:06:50]} e5 {[%emt 0:07:09]} 7. dxe5 {[%emt 0:05:42]} fxe5 {[%emt 0:00:10]} 8. Qh5+ {[%emt 0:15:59]} g6 {[%emt 0:02:51]} 9. Bxg6+ {[%emt 0:01:19]} hxg6 {[%emt 0:00:15]} 10. Qxh8 {[%emt 0:01:18]} exf4 {[%emt 0:00:27]} 11. Qxg8 {[%emt 0:00:43]} Bf5 {[%emt 0:01:03]} 12. Qh7 {[%emt 0:06:56]} Ne5 {[%emt 0:06:48]} 13. Nf3 {[%emt 0:07:38]} Nd3+ {[%emt 0:07:30]} 14. Kd2 {[%emt 0:00:38]} Qb6 {[%emt 0:02:32]} 15. Ne1 {[%emt 0:13:40]} Qxf2+ {[%emt 0:10:19]} 16. Kd1 {[%emt 0:00:04]} Nxb2+ {[%emt 0:01:39]} 17. Kc1 {[%emt 0:00:09]} Nc4 {[%emt 0:04:40]} 18. Kd1 {[%emt 0:16:01]} Bg4+ {[%emt 0:01:56]} 19. Nf3 {[%emt 0:01:41]} Ne3+ {[%emt 0:00:20]} 0-1

[Event "XVI Memorial Lezcano Montalvo 2024"]
[Site "Gran Canaria"]
[Date "2024.03.29"]
[Round "7.33"]
[White "Vargas Tinoco, Martin Alonso"]
[Black "Martin Ramos, Daniel"]
[Result "0-1"]
[ECO "A45"]
[WhiteElo "1681"]
[BlackElo "1961"]
[Annotator "NA RC"]
[PlyCount "94"]
[EventDate "2024.03.23"]
[EventType "swiss"]
[EventCountry "ESP"]
[SourceTitle "playchess.com"]
[Source "ChessBase"]
[SourceQuality "1"]
[TimeControl "5400+30"]

1. d4 {[%emt 0:00:03]} Nf6 {[%emt 0:00:06]} 2. Bf4 {[%emt 0:00:05]} g6 {[%emt 0:00:10]} 3. Nc3 {[%emt 0:00:12]} d5 {[%emt 0:01:30]} 4. Nb5 {[%emt 0:00:48]} Na6 {[%emt 0:00:06]} 5. e3 {[%emt 0:00:06]} c6 {[%emt 0:00:30]} 6. Nc3 {[%emt 0:00:07]} Nc7 {[%emt 0:00:05]} 7. Nf3 {[%emt 0:00:08]} Bg7 {[%emt 0:00:30]} 8. Be2 {[%emt 0:00:05]} O-O {[%emt 0:00:23]} 9. Ne5 {[%emt 0:01:15]} Ne6 {[%emt 0:01:10]} 10. Bg3 {[%emt 0:00:25]} a5 {[%emt 0:02:31]} 11. O-O {[%emt 0:03:27]} Nd7 {[%emt 0:07:00]} 12. Nxd7 {[%emt 0:03:55]} Qxd7 {[%emt 0:00:34]} 13. Na4 {[%emt 0:00:37]} Qd8 {[%emt 0:00:26]} 14. c4 {[%emt 0:00:25]} dxc4 {[%emt 0:02:54]} 15. Bxc4 {[%emt 0:00:56]} Nc7 {[%emt 0:03:20]} 16. Nb6 {[%emt 0:04:34]} Ra7 {[%emt 0:00:05]} 17. Qb3 {[%emt 0:08:17]} a4 {[%emt 0:10:01]} 18. Qb4 {[%emt 0:05:47]} Bf5 {[%emt 0:09:24]} 19. Rfd1 {[%emt 0:05:02]} Na6 {[%emt 0:03:35]} 20. Bxa6 {[%emt 0:02:53]} Rxa6 {[%emt 0:00:05]} 21. Nc4 {[%emt 0:05:28]} Be6 {[%emt 0:02:40]} 22. b3 {[%emt 0:04:51]} b5 {[%emt 0:04:21]} 23. Ne5 {[%emt 0:06:41]} Qa8 {[%emt 0:00:48]} 24. Rac1 {[%emt 0:01:45]} Bxe5 {[%emt 0:04:14]} 25. Bxe5 {[%emt 0:02:02]} Re8 {[%emt 0:00:11]} 26. Rc2 {[%emt 0:10:01]} axb3 {[%emt 0:00:40]} 27. axb3 {[%emt 0:00:09]} Ra3 {[%emt 0:00:13]} 28. Rc3 {[%emt 0:01:19]} Ra2 {[%emt 0:00:17]} 29. Rdc1 {[%emt 0:00:54]} Rb2 {[%emt 0:00:11]} 30. Qc5 {[%emt 0:07:38]} Bd5 {[%emt 0:01:25]} 31. f3 {[%emt 0:05:02]} Qa2 {[%emt 0:08:17]} 32. R1c2 {[%emt 0:02:33]} Rxc2 {[%emt 0:00:20]} 33. Rxc2 {[%emt 0:00:18]} Qxb3 {[%emt 0:00:06]} 34. e4 {[%emt 0:00:20]} Bc4 {[%emt 0:00:16]} 35. Rxc4 {[%emt 0:07:56]} Qxc4 {[%emt 0:00:14]} 36. Qxc4 {[%emt 0:00:58]} bxc4 {[%emt 0:00:04]} 37. Kf2 {[%emt 0:01:45]} Rd8 {[%emt 0:00:11]} 38. Ke3 {[%emt 0:00:17]} f6 {[%emt 0:00:14]} 39. Bc7 {[%emt 0:00:29]} Rc8 {[%emt 0:00:05]} 40. Bb6 {[%emt 0:00:08]} Rb8 {[%emt 0:00:06]} 41. Bc5 {[%emt 0:00:26]} Kf7 {[%emt 0:00:40]} 42. d5 {[%emt 0:00:41]} cxd5 {[%emt 0:00:06]} 43. exd5 {[%emt 0:00:06]} Rb2 {[%emt 0:00:04]} 44. Kd4 {[%emt 0:01:49]} Rxg2 {[%emt 0:00:06]} 45. d6 {[%emt 0:00:09]} exd6 {[%emt 0:00:10]} 46. Bxd6 {[%emt 0:00:07]} Rd2+ {[%emt 0:00:04]} 47. Kc5 {[%emt 0:00:21]} Rxd6 {[%emt 0:43:32]} 0-1

[Event "XVI Memorial Lezcano Montalvo 2024"]
[Site "Gran Canaria"]
[Date "2024.03.29"]
[Round "7.34"]
[White "Peters, Alexander John"]
[Black "Matos Espino, Carlos Silverio"]
[Result "1-0"]
[ECO "A07"]
[WhiteElo "1993"]
[BlackElo "1726"]
[Annotator "RC"]
[PlyCount "111"]
[EventDate "2024.03.23"]
[EventType "swiss"]
[EventCountry "ESP"]
[SourceTitle "playchess.com"]
[Source "ChessBase"]
[SourceQuality "1"]
[TimeControl "5400+30"]

1. Nf3 {[%emt 1:31:00]} d5 {[%emt 0:00:04]} 2. g3 {[%emt 0:00:00]} Nf6 {[%emt 0:00:45]} 3. Bg2 {[%emt 0:00:00]} e6 {[%emt 0:01:16]} 4. O-O {[%emt 0:00:00]} h5 {[%emt 0:03:11]} 5. c4 {[%emt 0:00:00]} c6 {[%emt 0:02:54]} 6. d4 {[%emt 0:00:00]} Nbd7 {[%emt 0:01:11]} 7. Nc3 {[%emt 0:00:00]} Bd6 {[%emt 0:06:05]} 8. Bg5 {[%emt 0:00:00]} b6 {[%emt 0:06:55]} 9. cxd5 {[%emt 0:00:00]} cxd5 {[%emt 0:02:20]} 10. e4 {[%emt 0:00:00]} Be7 {[%emt 0:03:02]} 11. exd5 {[%emt 0:00:00]} exd5 {[%emt 0:03:42]} 12. Ne5 {[%emt 0:00:00]} Bb7 {[%emt 0:03:35]} 13. Qa4 {[%emt 0:00:00]} Kf8 {[%emt 0:02:20]} 14. Nxd7+ {[%emt 0:00:00]} Nxd7 {[%emt 0:02:01]} 15. Bxe7+ {[%emt 0:00:00]} Qxe7 {[%emt 0:00:25]} 16. Nxd5 {[%emt 0:00:00]} Bxd5 {[%emt 0:03:10]} 17. Bxd5 {[%emt 0:00:00]} Rd8 {[%emt 0:00:22]} 18. Qxa7 {[%emt 0:00:00]} Nf6 {[%emt 0:05:51]} 19. Qxe7+ {[%emt 0:00:00]} Kxe7 {[%emt 0:00:08]} 20. Rfe1+ {[%emt 0:00:00]} Kf8 {[%emt 0:00:07]} 21. Bf3 {[%emt 0:00:00]} Rxd4 {[%emt 0:00:27]} 22. Rac1 {[%emt 0:00:00]} g6 {[%emt 0:01:23]} 23. Rc7 {[%emt 0:00:00]} h4 {[%emt 0:05:47]} 24. Rc8+ {[%emt 0:00:00]} Kg7 {[%emt 0:00:13]} 25. Rxh8 {[%emt 0:00:00]} Kxh8 {[%emt 0:00:08]} 26. gxh4 {[%emt 0:00:00]} Rxh4 {[%emt 0:00:58]} 27. Re7 {[%emt 0:00:00]} Rf4 {[%emt 0:01:39]} 28. Kg2 {[%emt 0:00:00]} Kg7 {[%emt 0:01:31]} 29. Rb7 {[%emt 0:00:00]} Rb4 {[%emt 0:00:54]} 30. b3 {[%emt 0:00:00]} Nh5 {[%emt 0:05:35]} 31. Bxh5 {[%emt 0:00:00]} gxh5 {[%emt 0:00:07]} 32. Kf3 {[%emt 0:00:00]} Kg6 {[%emt 0:01:38]} 33. Ke3 {[%emt 0:00:00]} Kg7 {[%emt 0:02:20]} 34. Kf3 {[%emt 0:00:00]} Kg6 {[%emt 0:00:15]} 35. Rc7 {[%emt 0:00:00]} Kf6 {[%emt 0:01:36]} 36. Rc6+ {[%emt 0:00:00]} Kg5 {[%emt 0:02:20]} 37. Rc4 {[%emt 0:00:00]} Rb5 {[%emt 0:00:36]} 38. h4+ {[%emt 0:00:00]} Kf5 {[%emt 0:00:54]} 39. b4 {[%emt 0:00:00]} Rd5 {[%emt 0:00:19]} 40. Rc6 {[%emt 0:00:00]} Rb5 {[%emt 0:01:09]} 41. a3 {[%emt 0:00:00]} f6 {[%emt 0:00:09]} 42. Rc4 {[%emt 0:01:17]} Rd5 {[%emt 0:03:13]} 43. a4 {[%emt 0:02:02]} Rd3+ {[%emt 0:01:56]} 44. Kg2 {[%emt 0:01:45]} Rd6 {[%emt 0:02:39]} 45. a5 {[%emt 0:02:35]} bxa5 {[%emt 0:00:14]} 46. bxa5 {[%emt 0:00:08]} Ra6 {[%emt 0:26:06]} 47. Ra4 {[%emt 0:00:06]} Ke5 {[%emt 0:00:00]} 48. Kf3 {[%emt 0:00:17]} Kf5 {[%emt 0:00:00]} 49. Ke3 {[%emt 0:00:19]} Ke5 {[%emt 0:00:00]} 50. Kd3 {[%emt 0:00:45]} Kd5 {[%emt 0:00:00]} 51. Kc3 {[%emt 0:01:00]} Kc5 {[%emt 0:00:00]} 52. Rf4 {[%emt 0:01:16]} Rxa5 {[%emt 0:00:00]} 53. Rf5+ {[%emt 0:00:12]} Kb6 {[%emt 0:00:00]} 54. Rxa5 {[%emt 0:00:09]} Kxa5 {[%emt 0:00:00]} 55. Kd4 {[%emt 0:00:11]} Kb4 {[%emt 0:00:00]} 56. f4 {[%emt 0:00:20]} 1-0

[Event "XVI Memorial Lezcano Montalvo 2024"]
[Site "Gran Canaria"]
[Date "2024.03.29"]
[Round "7.35"]
[White "Juan Miguel, Javier"]
[Black "Perez Celis, Alba"]
[Result "1-0"]
[ECO "D05"]
[WhiteElo "1597"]
[BlackElo "1854"]
[Annotator "NA RC"]
[PlyCount "109"]
[EventDate "2024.03.23"]
[EventType "swiss"]
[EventCountry "ESP"]
[SourceTitle "playchess.com"]
[Source "ChessBase"]
[SourceQuality "1"]
[TimeControl "5400+30"]

1. d4 {[%emt 0:00:30]} d5 {[%emt 0:08:07]} 2. e3 {[%emt 0:00:24]} Nf6 {[%emt 0:01:14]} 3. Bd3 {[%emt 0:02:34]} e6 {[%emt 0:01:27]} 4. Nf3 {[%emt 0:01:32]} Bd6 {[%emt 0:00:21]} 5. b3 {[%emt 0:01:23]} O-O {[%emt 0:00:47]} 6. Nbd2 {[%emt 0:01:44]} Nbd7 {[%emt 0:00:59]} 7. Bb2 {[%emt 0:01:18]} Qe7 {[%emt 0:03:38]} 8. Ne5 {[%emt 0:02:35]} Ne8 {[%emt 0:04:56]} 9. c4 {[%emt 0:05:00]} c6 {[%emt 0:01:16]} 10. O-O {[%emt 0:01:06]} f5 {[%emt 0:03:27]} 11. f4 {[%emt 0:04:09]} Nef6 {[%emt 0:01:43]} 12. Ndf3 {[%emt 0:02:42]} Ne4 {[%emt 0:00:26]} 13. Bxe4 {[%emt 0:01:16]} fxe4 {[%emt 0:00:55]} 14. Nxd7 {[%emt 0:02:29]} Bxd7 {[%emt 0:06:25]} 15. Ne5 {[%emt 0:01:56]} Be8 {[%emt 0:01:07]} 16. a4 {[%emt 0:03:53]} Qh4 {[%emt 0:02:13]} 17. Qg4 {[%emt 0:02:01]} Qh6 {[%emt 0:06:54]} 18. Ba3 {[%emt 0:06:06]} Bxa3 {[%emt 0:04:37]} 19. Rxa3 {[%emt 0:00:20]} Rf5 {[%emt 0:00:38]} 20. cxd5 {[%emt 0:04:02]} cxd5 {[%emt 0:04:04]} 21. Rc1 {[%emt 0:04:05]} g5 {[%emt 0:07:17]} 22. h4 {[%emt 0:03:25]} Qxh4 {[%emt 0:01:13]} 23. Qxh4 {[%emt 0:00:08]} gxh4 {[%emt 0:00:07]} 24. Ra2 {[%emt 0:00:45]} b5 {[%emt 0:02:09]} 25. a5 {[%emt 0:01:24]} Bh5 {[%emt 0:06:34]} 26. g4 {[%emt 0:01:31]} hxg3 {[%emt 0:00:15]} 27. Rg2 {[%emt 0:00:07]} Kh8 {[%emt 0:16:25]} 28. Rxg3 {[%emt 0:00:31]} Rff8 {[%emt 0:00:27]} 29. Rc7 {[%emt 0:03:19]} Rg8 {[%emt 0:01:13]} 30. Rxg8+ {[%emt 0:00:23]} Rxg8+ {[%emt 0:00:58]} 31. Kf2 {[%emt 0:00:04]} a6 {[%emt 0:01:19]} 32. Rc6 {[%emt 0:02:18]} Bd1 {[%emt 0:01:38]} 33. b4 {[%emt 0:01:04]} h5 {[%emt 0:07:21]} 34. Rxe6 {[%emt 0:00:57]} Kh7 {[%emt 0:00:15]} 35. Re7+ {[%emt 0:01:11]} Rg7 {[%emt 0:02:30]} 36. Rxg7+ {[%emt 0:01:07]} Kxg7 {[%emt 0:00:03]} 37. Kg3 {[%emt 0:01:56]} Kh6 {[%emt 0:01:02]} 38. Kh4 {[%emt 0:00:17]} Be2 {[%emt 0:00:27]} 39. Nf7+ {[%emt 0:00:30]} Kg6 {[%emt 0:00:27]} 40. Ng5 {[%emt 0:00:01]} Bg4 {[%emt 0:00:56]} 41. Kg3 {[%emt 0:01:44]} Bc8 {[%emt 0:00:15]} 42. Nh3 {[%emt 0:00:56]} Bg4 {[%emt 0:01:14]} 43. Ng1 {[%emt 0:01:03]} Bd1 {[%emt 0:00:00]} 44. Nh3 {[%emt 0:00:32]} Be2 {[%emt 0:00:42]} 45. f5+ {[%emt 0:00:39]} Kxf5 {[%emt 0:00:22]} 46. Nf4 {[%emt 0:00:04]} Bc4 {[%emt 0:02:02]} 47. Kh4 {[%emt 0:00:05]} Bb3 {[%emt 0:00:28]} 48. Kxh5 {[%emt 0:00:03]} Kf6 {[%emt 0:00:16]} 49. Ng6 {[%emt 0:00:55]} Bd1+ {[%emt 0:00:48]} 50. Kh6 {[%emt 0:00:08]} Bg4 {[%emt 0:00:56]} 51. Nf4 {[%emt 0:00:33]} Be6 {[%emt 0:00:28]} 52. Nxe6 {[%emt 0:00:14]} Kxe6 {[%emt 0:00:03]} 53. Kg6 {[%emt 0:00:05]} Kd6 {[%emt 0:00:17]} 54. Kf6 {[%emt 0:38:26]} Kc6 {[%emt 0:00:16]} 55. Ke6 {[%emt 0:00:30]} 1-0

[Event "XVI Memorial Lezcano Montalvo 2024"]
[Site "Gran Canaria"]
[Date "2024.03.29"]
[Round "7.36"]
[White "Rivero Reyes, Alejandro"]
[Black "Camara Bordon, Luis Marcos"]
[Result "1-0"]
[ECO "C63"]
[WhiteElo "1799"]
[BlackElo "1718"]
[Annotator "NA RC"]
[PlyCount "81"]
[EventDate "2024.03.23"]
[EventType "swiss"]
[EventCountry "ESP"]
[SourceTitle "playchess.com"]
[Source "ChessBase"]
[SourceQuality "1"]
[TimeControl "5400+30"]

1. e4 {[%emt 0:00:03]} e5 {[%emt 0:00:43]} 2. Nf3 {[%emt 0:00:09]} Nc6 {[%emt 0:00:00]} 3. Bb5 {[%emt 0:00:25]} f5 {[%emt 0:02:39]} 4. d3 {[%emt 0:00:23]} Nd4 {[%emt 0:01:30]} 5. Nxd4 {[%emt 0:02:11]} exd4 {[%emt 0:00:10]} 6. O-O {[%emt 0:00:30]} Nf6 {[%emt 0:00:54]} 7. e5 {[%emt 0:05:38]} Nd5 {[%emt 0:03:30]} 8. e6 {[%emt 0:03:38]} c6 {[%emt 0:00:00]} 9. exd7+ {[%emt 0:00:47]} Bxd7 {[%emt 0:03:02]} 10. Re1+ {[%emt 0:04:37]} Be7 {[%emt 0:00:37]} 11. Bc4 {[%emt 0:00:25]} O-O {[%emt 0:00:26]} 12. Qf3 {[%emt 0:03:27]} Bb4 {[%emt 0:06:10]} 13. Bxd5+ {[%emt 0:14:09]} cxd5 {[%emt 0:00:00]} 14. Bd2 {[%emt 0:01:10]} Bxd2 {[%emt 0:12:44]} 15. Qxd5+ {[%emt 0:00:17]} Rf7 {[%emt 0:02:28]} 16. Nxd2 {[%emt 0:00:12]} Qb6 {[%emt 0:00:00]} 17. Nc4 {[%emt 0:01:05]} Qc6 {[%emt 0:07:28]} 18. Qxf7+ {[%emt 0:00:40]} Kxf7 {[%emt 0:00:38]} 19. Ne5+ {[%emt 0:00:09]} Kf6 {[%emt 0:00:52]} 20. Nxc6 {[%emt 0:00:05]} Bxc6 {[%emt 0:01:02]} 21. Re2 {[%emt 0:03:01]} g5 {[%emt 0:01:50]} 22. Rae1 {[%emt 0:00:50]} g4 {[%emt 0:00:00]} 23. Re6+ {[%emt 0:03:41]} Kg5 {[%emt 0:03:10]} 24. Rd6 {[%emt 0:00:16]} h5 {[%emt 0:00:49]} 25. Rxd4 {[%emt 0:01:21]} h4 {[%emt 0:00:41]} 26. Rd6 {[%emt 0:02:14]} Rg8 {[%emt 0:04:15]} 27. Ree6 {[%emt 0:08:58]} Rg7 {[%emt 0:02:07]} 28. d4 {[%emt 0:04:04]} Be4 {[%emt 0:01:32]} 29. c4 {[%emt 0:01:05]} Bb1 {[%emt 0:00:36]} 30. c5 {[%emt 0:09:47]} Bxa2 {[%emt 0:00:13]} 31. Re5 {[%emt 0:00:44]} a5 {[%emt 0:02:48]} 32. d5 {[%emt 0:05:47]} a4 {[%emt 0:01:06]} 33. c6 {[%emt 0:02:33]} bxc6 {[%emt 0:02:22]} 34. dxc6 {[%emt 0:00:27]} a3 {[%emt 0:04:42]} 35. bxa3 {[%emt 0:00:55]} Ra7 {[%emt 0:00:48]} 36. Re3 {[%emt 0:01:35]} Ra5 {[%emt 0:01:46]} 37. Rc3 {[%emt 0:01:23]} Re5 {[%emt 0:00:35]} 38. Rc1 {[%emt 0:00:21]} g3 {[%emt 0:01:10]} 39. hxg3 {[%emt 0:00:41]} hxg3 {[%emt 0:34:37]} 40. fxg3 {[%emt 0:20:47]} Re3 {[%emt 0:00:30]} 41. Rd7 {[%emt 0:00:30]} 1-0

[Event "XVI Memorial Lezcano Montalvo 2024"]
[Site "Gran Canaria"]
[Date "2024.03.29"]
[Round "7.37"]
[White "Gonzalez Perdomo, Sergio"]
[Black "Lorenzo Merino, Hector"]
[Result "1-0"]
[ECO "B06"]
[WhiteElo "1792"]
[BlackElo "1586"]
[Annotator "NA RC"]
[PlyCount "73"]
[EventDate "2024.03.23"]
[EventType "swiss"]
[EventCountry "ESP"]
[SourceTitle "playchess.com"]
[Source "ChessBase"]
[SourceQuality "1"]
[TimeControl "5400+30"]

1. e4 {[%emt 0:00:02]} d6 {[%emt 0:09:03]} 2. Nc3 {[%emt 0:00:13]} g6 {[%emt 0:01:59]} 3. Nf3 {[%emt 0:00:07]} Bg7 {[%emt 0:00:17]} 4. d4 {[%emt 0:00:09]} c6 {[%emt 0:00:24]} 5. Be3 {[%emt 0:00:22]} Qc7 {[%emt 0:01:15]} 6. Qd2 {[%emt 0:00:52]} b5 {[%emt 0:00:00]} 7. Bd3 {[%emt 0:02:05]} Bg4 {[%emt 0:00:02]} 8. a3 {[%emt 0:03:47]} Bxf3 {[%emt 0:01:29]} 9. gxf3 {[%emt 0:00:04]} Nd7 {[%emt 0:00:44]} 10. f4 {[%emt 0:03:26]} e5 {[%emt 0:02:11]} 11. fxe5 {[%emt 0:00:44]} dxe5 {[%emt 0:00:19]} 12. d5 {[%emt 0:00:11]} a6 {[%emt 0:00:19]} 13. O-O-O {[%emt 0:03:50]} c5 {[%emt 0:00:22]} 14. Rhf1 {[%emt 0:04:01]} b4 {[%emt 0:00:20]} 15. axb4 {[%emt 0:00:41]} cxb4 {[%emt 0:00:12]} 16. Nb1 {[%emt 0:00:00]} a5 {[%emt 0:01:27]} 17. Bb5 {[%emt 0:01:02]} h5 {[%emt 0:02:47]} 18. Qd3 {[%emt 0:10:54]} Ngf6 {[%emt 0:01:29]} 19. f3 {[%emt 0:04:50]} O-O {[%emt 0:05:50]} 20. Bc6 {[%emt 0:02:50]} Rac8 {[%emt 0:00:28]} 21. Nd2 {[%emt 0:02:07]} Nb8 {[%emt 0:03:20]} 22. Ba4 {[%emt 0:00:15]} Nfd7 {[%emt 0:01:10]} 23. d6 {[%emt 0:09:57]} Qd8 {[%emt 0:01:02]} 24. Qb5 {[%emt 0:01:27]} f5 {[%emt 0:00:46]} 25. Nc4 {[%emt 0:00:42]} Nc6 {[%emt 0:00:42]} 26. Qd5+ {[%emt 0:00:40]} Kh7 {[%emt 0:00:31]} 27. Bxc6 {[%emt 0:00:07]} Nf6 {[%emt 0:00:34]} 28. Qb5 {[%emt 0:00:40]} fxe4 {[%emt 0:02:00]} 29. Bb6 {[%emt 0:01:08]} Bh6+ {[%emt 0:00:40]} 30. Kb1 {[%emt 0:00:12]} Rb8 {[%emt 0:00:15]} 31. Bxd8 {[%emt 0:00:16]} Rxb5 {[%emt 0:00:11]} 32. Bxb5 {[%emt 0:00:14]} Rxd8 {[%emt 0:00:05]} 33. fxe4 {[%emt 0:00:33]} Nxe4 {[%emt 0:00:26]} 34. Rf7+ {[%emt 0:00:26]} Kg8 {[%emt 0:00:32]} 35. Rd7 {[%emt 0:00:10]} Rf8 {[%emt 0:01:01]} 36. Nxe5 {[%emt 0:00:34]} Nc5 {[%emt 0:00:22]} 37. Bc4+ {[%emt 0:00:17]} 1-0